bitfinex/quotes_ETHUSD_20220226
["timestamp","ask_amount","ask_price","bid_price","bid_amount"]
[1645866595619,0.00440028,2760.5,2760.3,0.00759064]
[1645866596020,0.00442504,2761.3,2760.3,0.00759064]
[1645866596220,0.00440025,2760.5,2760.3,0.00759064]
[1645866596622,0.00440025,2760.5,2760.4,0.07655656]
[1645866597023,0.00360025,2760.5,2760.4,0.07655656]
[1645866597222,1.40470963,2761.2,2760.4,0.07655656]
[1645866597462,0.00440023,2760.6,2760.4,0.07655656]
[1645866597664,0.00440023,2760.6,2760.4,0.22145656]
[1645866597863,0.00440023,2760.6,2760.5,0.07655656]
[1645866598066,2.3e-07,2760.6,2760.5,0.22135656]
[1645866598463,1.409754,2761.3,2760.5,0.58495656]
[1645866598667,1.40500828,2761.2,2760.6,0.22135656]
[1645866598967,1.40500828,2761.2,2760.7,0.07655656]
[1645866599171,11.7148042,2761.8,2760.8,0.07655656]
[1645866599172,0.00442504,2761.8,2760.8,0.07655656]
[1645866599372,1.40616797,2761.7,2760.9,0.07655656]
[1645866599970,1.40616797,2761.7,2761.0,0.07655656]
[1645866599971,0.00439982,2761.4,2761.0,0.07655656]
[1645866600169,0.00439982,2761.4,2761.3,1.38082458]
[1645866600971,0.00442504,2762.2,2761.0,0.1448]
[1645866601214,0.0043998,2761.5,2761.0,0.1448]
[1645866601412,1.4059495,2761.4,2760.9,0.1448]
[1645866601613,1.4059495,2761.3,2761.0,0.07654348]
[1645866601816,0.0043998,2761.5,2761.0,0.07654348]
[1645866602117,0.6648042,2762.0,2761.0,1.30999899]
[1645866602118,1.40679693,2761.4,2761.0,1.30999899]
[1645866602313,0.00439989,2761.3,2761.0,0.00759064]
[1645866603316,0.00442504,2761.8,2761.0,0.00759064]
[1645866603514,0.00439989,2761.3,2761.0,0.00759064]
[1645866603921,1.40618169,2761.2,2761.0,0.00759064]
[1645866604519,0.00442504,2761.5,2761.0,0.00759064]
[1645866604721,0.00307621,2761.2,2761.0,0.00759064]
[1645866604959,0.00307621,2761.2,2760.7,1.14926851]
[1645866605160,0.00307621,2761.2,2760.8,0.0765419]
[1645866605562,1.40598835,2761.5,2760.8,0.0765419]
[1645866605964,0.00307621,2761.1,2760.8,0.0765419]
[1645866606363,0.00307621,2761.1,2760.9,0.1448]
[1645866606565,0.00307621,2761.1,2761.0,0.0765419]
[1645866606765,1.40605767,2761.4,2761.0,0.0765419]
[1645866606964,3.3061,2761.8,2760.8,0.1448]
[1645866607165,0.00307621,2761.1,2760.9,0.07654195]
[1645866607566,0.00307621,2761.1,2761.0,0.1448]
[1645866607767,0.00307621,2761.1,2761.0,4.38494195]
[1645866607969,1.40621751,2762.0,2761.0,4.02134195]
[1645866608166,1.41064255,2761.9,2761.1,0.07654195]
[1645866608367,4.02627916,2762.4,2761.2,0.1448]
[1645866608368,1.40621751,2761.8,2761.2,0.1448]
[1645866608635,0.02203083,2762.3,2761.3,0.07654195]
[1645866608827,1.40610563,2762.2,2761.3,0.07654195]
[1645866609028,1.40610563,2762.2,2761.0,0.00759064]
[1645866609228,0.36802504,2762.1,2761.1,0.07653376]
[1645866609430,1.76970563,2762.0,2761.1,0.07653376]
[1645866609628,1.40610563,2761.9,2761.1,0.07653376]
[1645866609829,1.40610563,2761.8,2761.1,0.07653376]
[1645866610730,0.00440297,2761.6,2761.4,1.39370732]
[1645866611031,0.00440297,2761.6,2761.0,0.00759064]
[1645866611231,0.00440297,2761.6,2761.1,0.07653448]
[1645866611631,1.27368504,2762.3,2761.1,0.07653448]
[1645866611832,1.4048178,2762.2,2761.1,0.07653448]
[1645866612037,0.00440302,2761.5,2761.2,0.00759064]
[1645866612232,0.00440302,2761.5,2761.2,1.2029332]
[1645866612671,0.00440302,2761.5,2761.2,0.00759064]
[1645866612870,0.00442504,2762.2,2761.3,0.1448]
[1645866613068,1.40463675,2762.1,2761.4,0.07652514]
[1645866613272,0.00442504,2762.3,2761.4,0.07652514]
[1645866613273,0.00440302,2761.5,2761.4,0.07652514]
[1645866613673,0.00440302,2761.5,2761.4,0.1448]
[1645866613973,0.00440302,2761.5,2761.4,1.46209061]
[1645866614172,0.00442504,2762.3,2761.4,1.46209061]
[1645866614375,0.00440297,2761.6,2761.5,0.07652514]
[1645866614574,0.00440297,2761.6,2761.5,0.08411578]
[1645866614773,0.00440297,2761.6,2761.5,0.00759064]
[1645866615177,0.02203261,2762.3,2761.5,0.22891351]
[1645866615377,0.00442504,2762.3,2761.6,0.07652287]
[1645866615574,0.00440293,2761.7,2761.6,0.07652287]
[1645866616232,12.021,2762.8,2761.5,0.00759064]
[1645866616233,0.45523595,2762.7,2761.5,0.00759064]
[1645866616431,0.31703598,2762.5,2761.5,0.00759064]
[1645866616630,0.13819997,2762.7,2761.6,0.07652017]
[1645866616631,0.31703598,2762.3,2761.6,0.07652017]
[1645866616831,0.00307621,2761.8,2761.5,0.00759064]
[1645866617234,7.621e-05,2761.8,2761.5,0.00759064]
[1645866617434,0.01230269,2762.3,2761.8,0.00072379]
[1645866617733,3.2708,2762.8,2761.8,0.00072379]
[1645866617932,1.40363802,2762.7,2761.8,0.00072379]
[1645866618333,1.42253152,2762.4,2761.8,0.00072379]
[1645866619134,1.42558561,2762.4,2761.8,0.00072379]
[1645866619535,12.47558561,2762.4,2761.8,0.00072379]
[1645866619735,1.40282949,2762.3,2761.8,0.00072379]
[1645866619970,0.00305409,2762.4,2761.8,0.00072379]
[1645866620173,12.8165162,2762.4,2761.8,0.00072379]
[1645866620376,1.40287564,2762.3,2761.8,0.00072379]
[1645866620772,1.40287564,2762.3,2761.9,0.00759064]
[1645866621173,0.00440563,2762.4,2761.9,0.00759064]
[1645866621471,1.40280508,2762.3,2761.9,0.00759064]
[1645866621671,0.00305727,2762.4,2761.9,0.00759064]
[1645866622175,1.18441114,2762.1,2761.9,0.00759064]
[1645866622877,0.00305716,2762.4,2761.9,0.00759064]
[1645866623075,11.41665716,2762.4,2761.9,0.00759064]
[1645866623720,11.4136,2762.4,2761.9,0.00759064]
[1645866623924,1.7663351,2762.3,2761.9,0.00759064]
[1645866624121,11.4136,2762.3,2761.9,0.00759064]
[1645866624323,11.4136,2762.1,2761.9,0.00759064]
[1645866624624,11.05747493,2762.4,2761.9,0.00759064]
[1645866624825,1.40307636,2762.3,2761.9,0.00759064]
[1645866625524,1.76667636,2762.3,2761.9,0.00759064]
[1645866625722,1.40307636,2762.2,2761.9,0.00759064]
[1645866626520,0.3636,2762.1,2761.9,0.00759064]
[1645866626723,12.81836293,2762.0,2761.9,0.00759064]
[1645866627125,11.4136,2762.0,2761.9,0.00759064]
[1645866627366,12.81932376,2762.0,2761.9,0.00759064]
[1645866627569,1.76932376,2762.0,2761.9,0.00759064]
[1645866627971,0.3636,2762.1,2761.9,0.00759064]
[1645866628574,0.0044176,2762.6,2761.9,0.00759064]
[1645866628775,0.00440882,2762.4,2761.9,0.00759064]
[1645866628975,1.76976417,2762.3,2761.9,0.00759064]
[1645866629178,11.05,2762.3,2761.9,0.00759064]
[1645866629376,1.40644266,2762.2,2761.9,0.00759064]
[1645866629778,0.0044176,2762.5,2761.9,0.00759064]
[1645866629976,0.3636,2762.3,2761.9,0.00759064]
[1645866630178,1.40625893,2762.2,2761.9,0.00759064]
[1645866630980,1.76985893,2762.2,2761.9,0.00759064]
[1645866631215,1.76985893,2762.1,2761.9,0.00759064]
[1645866631417,2.9140608,2762.0,2761.9,0.00759064]
[1645866631819,15.2640608,2762.0,2761.9,0.00759064]
[1645866632221,14.11985893,2762.0,2761.9,0.00759064]
[1645866633621,3.06985893,2762.0,2761.9,0.00759064]
[1645866633821,13.11985893,2762.0,2761.9,0.00759064]
[1645866634020,14.11985893,2762.0,2761.9,0.00759064]
[1645866635063,12.81985893,2762.0,2761.9,0.00759064]
[1645866635263,12.7136,2762.0,2761.9,0.00759064]
[1645866635467,14.12024445,2762.0,2761.9,0.00759064]
[1645866635665,1.77024445,2762.0,2761.9,0.00759064]
[1645866636268,12.82024445,2762.0,2761.9,0.00759064]
[1645866636469,1.77024445,2762.0,2761.9,0.00759064]
[1645866637470,1.77024445,2762.0,2761.8,0.00072379]
[1645866637669,12.82024445,2761.9,2761.8,0.00072379]
[1645866638069,13.82024445,2761.9,2761.8,0.00072379]
[1645866638729,1.40664445,2761.9,2761.8,0.00072379]
[1645866638928,1.77024445,2761.9,2761.8,0.00072379]
[1645866639126,1.40664445,2761.9,2761.8,0.00072379]
[1645866639325,1.41106205,2762.2,2761.8,0.00072379]
[1645866639531,1.40664445,2762.2,2761.8,0.00072379]
[1645866639732,11.4136,2762.1,2761.8,0.00072379]
[1645866639930,11.4136,2761.9,2761.8,0.00072379]
[1645866640129,1.77024445,2761.9,2761.8,0.00072379]
[1645866640729,12.82024445,2761.9,2761.8,0.00072379]
[1645866640932,1.77024445,2761.9,2761.8,0.00072379]
[1645866641535,1.40664445,2761.9,2761.8,0.00072379]
[1645866641731,1.40664445,2762.1,2761.8,0.00072379]
[1645866641932,12.45664445,2762.0,2761.8,0.00072379]
[1645866642133,1.40664445,2761.9,2761.8,0.00072379]
[1645866642382,1.40664445,2762.2,2761.8,0.00072379]
[1645866642588,0.0044176,2762.3,2761.8,0.00072379]
[1645866642589,1.40664445,2762.1,2761.8,0.00072379]
[1645866642790,1.40664445,2762.0,2761.8,0.00072379]
[1645866643589,0.3636,2761.9,2761.8,0.00072379]
[1645866643893,1.77024445,2761.9,2761.8,0.00072379]
[1645866644689,1.40664445,2761.9,2761.8,0.00072379]
[1645866645091,1.40664445,2762.0,2761.8,0.00072379]
[1645866646319,1.40664445,2761.9,2761.8,0.00072379]
[1645866646720,2.81882455,2762.3,2761.8,0.00072379]
[1645866646721,0.3636,2762.0,2761.8,0.00072379]
[1645866646921,1.40664445,2761.9,2761.8,0.00072379]
[1645866647922,1.77024445,2762.0,2761.8,0.00072379]
[1645866648122,1.40664445,2761.9,2761.8,0.00072379]
[1645866648822,0.3680176,2762.2,2761.8,0.00072379]
[1645866648823,1.40664445,2762.1,2761.8,0.00072379]
[1645866649126,1.40664445,2762.0,2761.8,0.00072379]
[1645866649424,1.40664445,2761.9,2761.8,0.00072379]
[1645866650066,1.41106205,2762.2,2761.8,0.07724464]
[1645866650265,0.00440865,2762.4,2761.8,0.07724464]
[1645866650266,1.40664445,2762.1,2761.8,0.07724464]
[1645866650466,1.40664445,2762.0,2761.9,0.07652085]
[1645866650666,0.00440865,2762.4,2761.8,0.00072379]
[1645866650866,1.40664445,2762.3,2761.8,0.07724464]
[1645866651068,1.40664445,2762.2,2761.8,0.07724464]
[1645866651367,1.98935467,2762.6,2761.8,0.07724464]
[1645866651368,1.40664445,2762.1,2761.8,0.07724464]
[1645866651569,1.40664445,2762.0,2761.8,0.00072379]
[1645866651774,1.40664445,2761.9,2761.8,0.00072379]
[1645866651970,0.00440887,2762.4,2761.8,0.00072379]
[1645866652169,1.40664445,2762.3,2761.8,0.07724464]
[1645866652371,1.40664445,2762.2,2761.8,0.07724464]
[1645866652571,1.40664445,2762.1,2761.8,0.07724464]
[1645866652770,1.40664445,2762.0,2761.8,0.00072379]
[1645866652970,0.3044176,2762.4,2761.8,0.00072379]
[1645866652971,1.40664445,2761.9,2761.8,0.00072379]
[1645866653170,1.40664445,2762.3,2761.8,0.07724604]
[1645866653368,1.40664445,2762.2,2761.8,0.00072379]
[1645866653630,1.40664445,2762.1,2761.8,0.07724372]
[1645866653820,1.40664445,2762.0,2761.8,0.07724372]
[1645866654020,0.0044176,2762.4,2761.9,0.07651993]
[1645866654219,1.4112233,2762.3,2761.8,0.00072379]
[1645866654423,1.4112233,2762.3,2761.8,0.07724384]
[1645866655222,1.4112233,2762.3,2761.9,0.07652005]
[1645866655421,1.4112233,2762.3,2762.0,0.07652005]
[1645866655621,1.4112233,2762.3,2761.8,0.00072379]
[1645866656220,1.4112233,2762.3,2761.8,1.42089496]
[1645866656421,1.4112233,2762.3,2761.9,0.07651898]
[1645866656622,1.4112233,2762.3,2762.0,0.07651898]
[1645866656821,1.4112233,2762.3,2761.8,0.00072379]
[1645866657225,1.4112233,2762.3,2761.8,0.07724097]
[1645866658772,1.4112233,2762.3,2761.8,0.00072379]
[1645866658971,2.38013443,2762.4,2761.8,0.00072379]
[1645866659170,1.53347184,2762.3,2761.8,0.00072379]
[1645866659372,1.4112233,2762.2,2761.8,0.07724525]
[1645866659575,1.4112233,2762.2,2761.8,0.00072379]
[1645866659874,0.00078672,2761.8,2761.3,1.18344762]
[1645866660071,0.00078672,2761.8,2761.7,0.00353555]
[1645866661153,0.00078672,2761.8,2761.4,1.09109109]
[1645866661343,0.00078672,2761.8,2761.6,0.00353561]
[1645866662149,0.00078672,2761.8,2761.4,0.07652578]
[1645866662550,0.00078672,2761.8,2761.6,0.0043441]
[1645866663150,0.00078672,2761.8,2761.7,0.07652583]
[1645866663549,0.00078672,2761.8,2761.3,0.04384762]
[1645866663550,0.00078672,2761.8,2761.4,0.07652583]
[1645866663752,0.00078672,2761.8,2761.6,0.00406522]
[1645866663950,1.41547583,2761.8,2761.6,0.00406522]
[1645866664150,1.41468911,2761.7,2761.6,0.00406522]
[1645866664552,1.41468911,2761.7,2761.4,0.07652583]
[1645866664753,1.41468911,2761.6,2761.4,0.07652583]
[1645866664962,0.00078672,2761.8,2761.4,0.07652583]
[1645866665161,0.00078672,2761.8,2761.5,0.00406525]
[1645866665663,1.41642711,2761.8,2761.5,0.00406525]
[1645866665871,1.41642711,2761.8,2761.4,0.07652583]
[1645866666065,1.41642711,2761.8,2761.5,0.00406525]
[1645866666969,1.41642711,2761.8,2761.4,0.07652583]
[1645866666970,1.41564039,2761.7,2761.4,0.07652583]
[1645866667169,1.41564039,2761.6,2761.5,0.07652583]
[1645866667371,1.41564039,2761.6,2761.5,0.08059108]
[1645866667568,0.00078672,2761.8,2761.5,0.00406525]
[1645866668069,1.41721352,2761.8,2761.5,0.00406525]
[1645866668269,1.4164268,2761.7,2761.4,0.07652583]
[1645866668469,1.4164268,2761.6,2761.5,0.08060974]
[1645866668728,0.00078672,2761.8,2761.5,0.08060974]
[1645866668930,0.00078672,2761.8,2761.6,0.07652583]
[1645866669530,0.00078672,2761.8,2761.7,0.07652583]
[1645866669934,0.00078672,2761.8,2761.6,0.00408388]
[1645866670330,1.78099021,2761.8,2761.6,0.00408388]
[1645866670531,1.41660349,2761.7,2761.0,1.26705299]
[1645866670732,1.41660349,2761.7,2761.1,0.07653002]
[1645866670929,1.41660349,2761.6,2761.1,0.07653002]
[1645866671129,1.41660349,2761.5,2761.1,1.43630326]
[1645866671330,0.00078672,2761.8,2761.2,0.07653002]
[1645866671533,0.00078672,2761.8,2761.3,0.07653002]
[1645866672131,0.00078672,2761.8,2761.0,0.04385299]
[1645866672132,0.3636,2761.7,2761.4,0.08062402]
[1645866672366,12.46725274,2761.8,2761.4,0.08062402]
[1645866672367,1.78006602,2761.6,2761.4,0.004094]
[1645866672570,1.41646602,2761.5,2761.4,0.004094]
[1645866672970,1.41646602,2761.5,2761.0,0.04385299]
[1645866673172,1.41646602,2761.4,2761.1,0.07653211]
[1645866673369,0.00078672,2761.8,2761.3,0.00360942]
[1645866673570,1.41681195,2761.8,2761.3,0.00360942]
[1645866674174,1.78041195,2761.8,2761.0,0.07653211]
[1645866674376,1.78041195,2761.8,2760.9,1.04467933]
[1645866674377,1.41602523,2761.7,2761.1,0.07653211]
[1645866674573,1.41602523,2761.6,2761.4,0.00360929]
[1645866674773,1.41602523,2761.5,2761.4,0.00360929]
[1645866674974,0.3636,2761.5,2761.4,0.00360929]
[1645866675178,1.41602523,2761.5,2761.4,0.00360929]
[1645866675376,1.41602523,2761.5,2760.9,0.07653211]
[1645866675576,1.41602523,2761.4,2761.0,0.07653211]
[1645866675776,1.29499903,2761.7,2761.3,0.00360942]
[1645866675978,0.00078672,2761.8,2761.3,0.00360942]
[1645866675979,1.78029969,2761.6,2761.3,0.00360942]
[1645866676218,1.41669969,2761.5,2761.3,0.00360942]
[1645866676420,1.41669969,2761.5,2761.3,0.08014153]
[1645866676622,1.78029969,2761.5,2761.4,0.07653211]
[1645866676824,1.78029969,2761.5,2761.3,0.00360949]
[1645866677028,1.41669969,2761.4,2761.3,0.00360949]
[1645866677831,1.41669969,2761.4,2760.8,0.03014331]
[1645866678025,0.3636,2761.6,2760.7,1.125]
[1645866678225,0.3636,2761.6,2761.2,0.00370605]
[1645866678828,0.3636,2761.7,2761.2,0.00370605]
[1645866679028,0.00337206,2761.1,2760.7,1.125]
[1645866679230,0.00337206,2761.1,2760.3,9.3169]
[1645866679231,0.00337206,2761.1,2760.3,2.44818406]
[1645866679530,0.00337206,2761.1,2760.1,0.68407146]
[1645866679962,0.00337206,2761.1,2760.0,0.68407146]
[1645866680264,11.4136,2761.0,2759.9,8.38407146]
[1645866680661,12.4136,2761.0,2759.9,7.7]
[1645866681070,12.4136,2761.0,2759.9,0.25]
[1645866681377,1.3636,2761.0,2759.9,0.25]
[1645866681766,0.3636,2761.0,2760.3,0.00135319]
[1645866682569,0.3636,2761.0,2760.0,0.68407146]
[1645866682771,0.3636,2761.0,2759.9,0.93407146]
[1645866682972,0.3636,2761.0,2760.5,0.00441027]
[1645866683638,0.3636,2760.8,2760.5,0.00441027]
[1645866683829,0.3636,2760.8,2759.7,8.6977]
[1645866684029,0.3636,2760.8,2760.6,0.00406713]
[1645866684232,0.3636,2760.8,2759.3,10.83510286]
[1645866684431,0.18915804,2759.6,2758.1,7.62641277]
[1645866684641,0.18915804,2759.6,2757.9,3.04023251]
[1645866684642,0.01295348,2758.7,2758.2,7.2494]
[1645866684832,0.522,2758.6,2757.7,0.25]
[1645866685032,3.87584182,2758.9,2757.2,1.35708769]
[1645866685033,6.525,2757.9,2757.2,0.91458498]
[1645866685231,6.525,2757.9,2757.0,1.62187747]
[1645866685232,6.525,2757.9,2757.0,0.25]
[1645866685433,5.0,2757.7,2757.0,0.25]
[1645866685635,5.0,2757.5,2756.0,30.08365699]
[1645866685833,6.525,2757.1,2756.0,30.08365699]
[1645866686030,6.525,2756.9,2756.0,30.30219399]
[1645866686234,8.95463369,2758.0,2756.4,7.0]
[1645866686432,3.1409,2758.2,2756.5,0.01247962]
[1645866686433,1.0,2757.6,2756.5,0.01247962]
[1645866686636,1.0,2757.6,2756.6,5.0]
[1645866686833,1.0,2757.6,2756.7,0.522]
[1645866687030,1.0,2757.6,2756.8,5.0]
[1645866687235,1.0,2757.6,2756.7,6.83610439]
[1645866687236,1.0,2757.6,2757.4,0.5]
[1645866687475,1.0,2757.6,2757.5,0.1449]
[1645866687674,1.0,2757.6,2757.4,0.3636]
[1645866688078,1.0,2757.6,2757.3,0.522]
[1645866688979,1.0,2757.6,2757.3,0.52641094]
[1645866689179,1.0,2757.6,2757.3,0.82641094]
[1645866689378,1.0,2757.6,2757.4,0.1449]
[1645866690082,1.0,2757.6,2757.4,0.00441092]
[1645866690484,0.9067,2758.5,2757.4,0.00441092]
[1645866691133,1.0,2758.6,2757.5,0.1449]
[1645866691336,0.3,2758.7,2757.8,0.0044107]
[1645866691536,0.3,2758.7,2757.6,0.00289666]
[1645866691537,4.32042,2758.9,2757.7,0.1449]
[1645866691736,4.32042,2758.9,2757.7,0.522]
[1645866692541,0.90657,2758.8,2757.8,0.1449]
[1645866692838,1.20657,2758.8,2757.8,1.42605405]
[1645866693040,1.20657,2758.8,2757.8,0.1449]
[1645866693341,0.1449,2759.0,2757.8,0.1449]
[1645866693549,4.68359228,2759.3,2758.0,0.3636]
[1645866693839,4.68359228,2759.3,2758.2,1.0]
[1645866694042,4.68359228,2759.3,2758.3,0.6669]
[1645866695575,0.90644,2759.2,2758.3,0.6669]
[1645866695776,0.90644,2759.2,2758.4,0.3636]
[1645866695982,0.90644,2759.2,2758.5,0.1449]
[1645866698483,1.2701098,2759.1,2758.3,0.00288162]
[1645866698731,1.2701098,2759.1,2758.1,0.00288162]
[1645866698732,0.3636,2758.9,2758.1,0.00288162]
[1645866698927,0.3,2759.1,2757.8,0.00288162]
[1645866698928,0.00840245,2757.9,2757.8,0.00288162]
[1645866699129,0.00840245,2757.9,2757.6,0.13164015]
[1645866699848,0.00840245,2757.9,2757.6,0.00440948]
[1645866700228,0.00840245,2757.9,2757.7,0.1449]
[1645866700830,0.00840245,2757.9,2757.5,0.1449]
[1645866701033,0.9067642,2758.4,2757.7,0.00440946]
[1645866701631,0.90673,2758.4,2757.7,0.00440946]
[1645866701930,0.9066585,2758.7,2757.5,0.522]
[1645866702129,0.9066585,2758.7,2757.7,0.00440974]
[1645866702375,1.2066585,2758.7,2757.7,0.00729136]
[1645866702965,1.2066585,2758.7,2757.7,0.00440974]
[1645866702966,4.40661,2758.6,2757.7,0.00440974]
[1645866703170,0.9067318,2758.4,2757.5,0.00288162]
[1645866703369,0.9067318,2758.4,2757.7,0.00440991]
[1645866703570,0.9067318,2758.4,2757.7,0.00729153]
[1645866703771,1.2703318,2758.4,2757.7,0.00729153]
[1645866703970,1.27033,2758.2,2757.7,0.00440991]
[1645866704371,1.27033,2758.2,2757.8,0.13108737]
[1645866704572,1.8135295,2758.2,2757.8,0.13108737]
[1645866704773,0.90673,2758.2,2757.8,0.13108737]
[1645866705372,1.27033,2758.2,2757.8,0.13108737]
[1645866708228,0.90673,2758.2,2757.8,0.13108737]
[1645866709732,0.90673,2758.2,2757.7,0.145]
[1645866709966,3.9906499,2758.5,2758.0,0.13053468]
[1645866709967,1.81347,2758.5,2758.0,0.13053468]
[1645866710772,1.81347,2758.5,2758.1,0.1449]
[1645866711575,0.9066756,2758.4,2758.0,0.13053468]
[1645866714228,0.9066756,2758.4,2757.8,1.37517407]
[1645866714424,2.7202856,2758.4,2757.8,1.37229245]
[1645866715326,0.02554141,2758.5,2757.8,1.37229245]
[1645866715527,0.02554141,2758.5,2758.3,1.18066829]
[1645866715729,0.02554141,2758.5,2757.8,1.23948162]
[1645866716529,0.90671,2758.4,2757.8,1.23948162]
[1645866716732,0.90671,2758.4,2757.7,8.75]
[1645866716929,0.90671,2758.4,2757.7,8.75288162]
[1645866717129,0.90671,2758.4,2757.7,9.94094394]
[1645866717404,0.90671,2758.4,2757.7,8.75288162]
[1645866717989,0.90671,2758.4,2757.7,7.45288162]
[1645866718188,0.90671,2758.4,2757.7,7.45]
[1645866718189,1.8134521,2758.4,2757.7,7.45]
[1645866719397,1.27049,2758.0,2757.6,0.0044099]
[1645866719593,2.1773592,2758.0,2757.6,0.0044099]
[1645866719799,2.1773592,2758.0,2757.4,0.1449]
[1645866720292,2.1773592,2758.0,2757.6,0.00132809]
[1645866720492,0.00254393,2757.5,2757.2,0.00288162]
[1645866720693,0.00254393,2757.5,2757.1,1.1326]
[1645866721129,0.00254393,2757.5,2757.1,1.6546]
[1645866721528,0.00254393,2757.5,2757.1,1.9546]
[1645866723239,0.00254393,2757.5,2756.1,0.25]
[1645866723240,0.01258221,2757.2,2756.1,0.25]
[1645866723435,0.01241603,2756.6,2756.1,0.25]
[1645866723635,0.37601603,2756.6,2755.9,0.5]
[1645866723833,0.3636,2756.4,2755.9,0.5]
[1645866724234,1.6634,2756.7,2755.9,0.5]
[1645866724442,4.1634,2756.7,2755.9,0.5]
[1645866724635,0.3636,2756.5,2755.3,7.5444]
[1645866724874,0.822,2756.6,2755.2,0.25]
[1645866724875,0.8856,2756.4,2755.2,0.25]
[1645866725067,3.60801,2756.4,2755.4,0.04263176]
[1645866725271,4.90801,2756.4,2755.9,1.0]
[1645866725472,0.90746,2756.2,2755.9,1.0]
[1645866726672,0.90746,2756.2,2755.4,0.04263176]
[1645866727273,0.9074695,2756.1,2755.4,0.04263176]
[1645866727473,0.90749,2756.0,2755.4,1.28206794]
[1645866727872,0.90749,2756.0,2755.5,0.04206333]
[1645866728729,0.90749,2756.0,2755.6,0.00440091]
[1645866729129,0.90749,2756.0,2755.7,0.04092649]
[1645866729734,0.90749,2756.0,2755.7,0.04532724]
[1645866729929,0.90749,2756.0,2755.7,0.00440075]
[1645866730130,0.90749,2756.0,2755.8,0.04035806]
[1645866730932,0.90749,2756.0,2755.8,0.04475873]
[1645866731133,1.27109,2756.0,2755.8,0.04475873]
[1645866731340,1.27109,2756.0,2755.3,0.02047899]
[1645866731341,4.83112371,2755.9,2755.3,0.02047899]
[1645866731535,0.9076696,2755.8,2755.3,0.01760532]
[1645866731734,1.90749,2756.0,2755.3,0.01760532]
[1645866731932,1.0,2756.0,2754.8,0.522]
[1645866732133,0.2998,2756.7,2755.6,5.0]
[1645866732387,0.2998,2756.7,2755.8,5.0]
[1645866732574,0.2998,2756.7,2755.9,15.64164066]
[1645866732779,0.2998,2756.7,2755.9,13.14451433]
[1645866733380,0.2998,2756.7,2755.9,16.64451433]
[1645866733581,0.2998,2756.7,2755.9,17.64451433]
[1645866733781,0.2998,2756.7,2755.9,14.05152433]
[1645866733982,0.2998,2756.7,2756.0,12.4136]
[1645866734282,0.2998,2756.7,2756.1,0.7133259]
[1645866734687,0.00254393,2757.5,2756.1,15.6269259]
[1645866734890,0.00254393,2757.5,2756.6,0.3636]
[1645866735081,0.00254393,2757.5,2756.7,0.522]
[1645866735282,0.00254393,2757.5,2756.7,0.82487367]
[1645866736126,0.00254393,2757.5,2756.7,0.30287367]
[1645866736529,0.00254393,2757.5,2756.7,0.3]
[1645866736728,0.00254393,2757.5,2756.5,0.30287367]
[1645866736927,0.00254393,2757.5,2756.8,1.04297305]
[1645866737329,0.00254393,2757.5,2756.8,1.34297305]
[1645866737727,0.00254393,2757.5,2756.8,1.34584672]
[1645866739135,0.00254393,2757.5,2756.8,0.00287367]
[1645866739436,2.721397,2757.4,2756.8,0.00287367]
[1645866739633,0.907107,2757.4,2756.6,7.2553]
[1645866740082,6.8851488,2757.3,2756.6,7.2553]
[1645866740280,0.1449,2757.2,2756.6,7.2553]
[1645866740501,13.22868,2757.0,2756.2,0.00287367]
[1645866740682,9.96253822,2757.1,2755.8,1.01751551]
[1645866740683,1.99619686,2756.1,2755.8,1.01751551]
[1645866740884,0.3636,2755.9,2755.8,1.01751551]
[1645866741285,0.3636,2755.9,2755.8,0.01751551]
[1645866741286,12.2356,2755.9,2755.8,0.01751551]
[1645866741683,13.2356,2755.9,2755.8,0.01751551]
[1645866741885,13.2356,2755.9,2755.0,0.25]
[1645866742082,0.3636,2755.5,2754.7,1.0]
[1645866742482,0.979,2755.4,2754.7,1.0]
[1645866742690,0.3,2755.3,2754.1,0.25]
[1645866742882,0.3,2755.3,2753.9,1.8536]
[1645866743284,0.3636,2755.1,2753.7,1.0]
[1645866743485,0.3636,2754.5,2753.5,0.5]
[1645866743744,0.3636,2754.5,2753.4,0.25]
[1645866743745,0.3636,2754.3,2753.4,0.25]
[1645866743940,0.6636,2754.5,2753.1,0.5]
[1645866744141,1.0,2754.4,2752.8,5.42907727]
[1645866744340,0.522,2754.9,2753.3,7.45]
[1645866744341,4.4079645,2754.8,2753.3,7.45]
[1645866744540,0.9079645,2754.8,2753.3,7.45]
[1645866744742,0.908,2754.6,2753.3,7.45]
[1645866744942,0.3636,2754.5,2753.3,7.45]
[1645866745143,0.3636,2754.4,2753.5,1.27066266]
[1645866745443,0.3636,2754.4,2753.8,0.00432852]
[1645866745640,0.9080702,2754.5,2753.8,0.00432852]
[1645866745846,0.3,2754.6,2753.8,0.00432852]
[1645866745847,0.908,2754.6,2753.8,0.00432852]
[1645866746045,0.3636,2754.9,2753.9,0.1452]
[1645866746649,0.3636,2754.9,2754.3,0.00432782]
[1645866747046,1.2715868,2754.8,2754.3,0.00432782]
[1645866747244,11.7136,2754.6,2754.3,0.00432782]
[1645866747476,0.3636,2754.4,2754.3,0.00432782]
[1645866747674,0.6636,2754.4,2753.4,0.00286316]
[1645866747879,0.3636,2754.2,2753.9,0.01731354]
[1645866748184,0.6636,2754.2,2753.9,0.01731354]
[1645866748384,5.68018,2754.1,2753.9,1.354e-05]
[1645866748581,0.3636,2753.8,2752.8,0.00286316]
[1645866748778,0.3636,2753.6,2753.4,0.00286316]
[1645866748978,0.2946,2753.6,2752.8,0.00286316]
[1645866749178,0.2946,2753.6,2752.6,0.00286316]
[1645866749779,0.2946,2753.5,2752.6,0.00286316]
[1645866750179,0.2946,2753.5,2753.0,1.0]
[1645866750382,0.2946,2753.5,2753.0,0.00101158]
[1645866750692,1.20302,2753.4,2753.0,0.00101158]
[1645866750886,0.2946,2753.2,2753.0,0.00101158]
[1645866751148,0.8166,2753.2,2752.4,0.00286316]
[1645866751354,0.2946,2752.8,2752.4,0.00286316]
[1645866751549,4.3166,2752.8,2751.8,1.31870046]
[1645866751753,0.2946,2752.4,2751.0,0.00286316]
[1645866752053,0.2946,2752.4,2751.3,1.0]
[1645866752250,0.2946,2752.4,2751.4,0.14816316]
[1645866752452,0.2946,2751.9,2751.4,0.14816316]
[1645866752652,0.2946,2751.9,2750.7,0.00286316]
[1645866752653,2.11293,2751.9,2750.7,0.00286316]
[1645866752852,0.90917,2751.8,2750.9,1.08487383]
[1645866753050,2.34033,2751.9,2750.9,1.08487383]
[1645866753051,1.0912,2752.0,2751.0,0.00286316]
[1645866753255,0.522,2752.2,2751.1,0.1453]